Cogmind - Beta 17.1 @@@ ROGUE MODE // 2026.08.30 @ 14:19:07 Player: UnderDoug Result: Destroyed by S-10 Pest with Light Assault Rifle Performance ------------- Evolutions (1) 500 Regions Visited (4) 800 Robots Destroyed (51) 255 Value Destroyed (1457) 1457 Prototype IDs (1) 20 Alien Tech Used (0) 0 Bonus (52) 52 TOTAL SCORE: 3084 Bonus ------- High Alert Combat Kills 27 Follower Combat Kills 25 Cogmind --------- Core Integrity 0/400 Matter 47/300 Energy 100/100 System Corruption 0% Temperature Cool (0) Movement Core (200) Ox3 Location -9/Storage Parts ------- > --- POWER (2) -------- (None) > --- PROPULSION (3) --- (None) > --- UTILITY (2) ------ Medium Storage Unit > --- WEAPON (2) ------- (None) > --- INVENTORY (10) --- Ion Engine Light Ion Engine Light Treads Light Treads Carbon-fiber Leg Hammer Peak State ------------ > --- POWER ------------ Light Ion Engine Improved Ion Engine > --- PROPULSION ------- Carbon-fiber Leg Carbon-fiber Leg Carbon-fiber Leg > --- UTILITY ---------- Medium Storage Unit Experimental Sensor Array > --- WEAPON ----------- Light Assault Rifle Rocket Launcher > --- INVENTORY -------- Light Ion Engine Light Treads Light Treads Carbon-fiber Leg Structural Scanner Assault Rifle Assault Rifle Rocket Launcher Mini Grenade Launcher Hammer [Rating: 26] Favorites ----------- Power Ion Engine Engine Ion Engine Propulsion Carbon-fiber Leg Treads Light Treads Leg Carbon-fiber Leg Wheel Wheel Utility Medium Storage Unit Device Structural Scanner Storage Medium Storage Unit Weapon Assault Rifle Ballistic Gun Assault Rifle Launcher Rocket Launcher Impact Weapon Hammer Build | -11 -10 -10 -9 -9 ------- Run | Yrd Mat Min Mat Sto Slots Evolved 2 | . . . 2 . Power 1 | . . . 1 . Propulsion 1 | . . . 1 . Utility . | . . . . . Weapon . | . . . . . Parts Attached 33 | 6 10 6 11 . Power 7 | 1 1 . 5 . Engine 7 | 1 1 . 5 . Core . | . . . . . Reactor . | . . . . . Propulsion 12 | 2 2 4 4 . Treads 3 | 2 1 . . . Leg 6 | . . 2 4 . Wheel 3 | . 1 2 . . Hover . | . . . . . Flight . | . . . . . Utility 5 | 1 3 1 . . Device 3 | . 2 1 . . Storage 2 | 1 1 . . . Processor . | . . . . . Hackware . | . . . . . Protection . | . . . . . Artifact . | . . . . . Weapon 9 | 2 4 1 2 . Energy Gun . | . . . . . Energy Cannon . | . . . . . Ballistic Gun 3 | 2 . . 1 . Ballistic Cannon . | . . . . . Launcher 5 | . 3 1 1 . Special Weapon . | . . . . . Impact Weapon 1 | . 1 . . . Slashing Weapon . | . . . . . Piercing Weapon . | . . . . . Special Melee Weapon . | . . . . . Unidentified Prototypes 1 | . . 1 . . Parts Lost 20 | . 3 2 5 10 Power 5 | . 1 . 2 2 Propulsion 5 | . 1 1 . 3 Utility 3 | . 1 . 1 1 Weapon 7 | . . 1 2 4 Highest Loss Streak 9 | . 1 2 3 9 To Critical Strikes . | . . . . . Average Backups 8 | 3 8 9 9 6 Power 1 | . . 1 . 2 Propulsion 3 | 2 4 2 2 3 Utility . | . . . . . Weapon 4 | . 3 4 4 1 Tool/Special . | . . . . . Unused Backups 4 | . 1 . 2 1 Power 2 | . . . 1 1 Propulsion . | . . . . . Utility . | . . . . . Weapon 2 | . 1 . 1 . Tool/Special . | . . . . . Average Slot Usage (%) 96 | . 96 99 96 62 Engine 15 | . 13 14 21 10 Treads 9 | . 26 . . . Leg 17 | . . 23 31 19 Wheel 1 | . . 4 . . Device 12 | . 12 14 10 11 Storage 13 | . 14 14 11 11 Ballistic Gun 12 | . 14 14 10 5 Launcher 10 | . 8 13 10 4 Impact Weapon 1 | . 4 . . . Peak Build Rating 26 | 6 9 17 26 18 Average Rating 12 | 4 7 9 23 9 On Entrance 9 | . 6 8 17 18 Avg Prop Armor Cover (%) . | . . . . . Naked Turns . | . . . . . Heaviest Build 27 | 14 22 22 27 27 Greatest Support 45 | 40 40 26 45 45 Greatest Overweight (x) 5 | . 5 1 1 3 Average Overweight (x) . | . . . . . Largest Inventory Capacity 10 | 8 10 10 10 10 Average Capacity 9 | 7 9 10 10 10 Most Carried 10 | 6 10 10 10 8 Average Carried 8 | 3 9 9 9 6 Final Capacity 10 | 8 10 10 10 10 Final Carried 10 | 6 9 10 8 6 Class Distribution -------------------- 100% | Mutant Dominant Class ---------------- Mutant | -10/Materials Mutant | -10/Mines Mutant | -9/Materials Mutant | -9/Storage Resources | -11 -10 -10 -9 -9 ----------- Run | Yrd Mat Min Mat Sto Matter Collected 1253 | 229 406 217 394 7 Remotely . | . . . . . Salvage Created 1026 | . 473 38 465 50 Parts 85 | . 34 4 43 4 Haulers Intercepted . | . . . . . Recyclers Shooed 1 | . 1 . . . Parts Field Recycled . | . . . . . Retrieved Matter . | . . . . . Parts Self-Destructed . | . . . . . Prevented . | . . . . . Parts Restored . | . . . . . Kills | -11 -10 -10 -9 -9 ------- Run | Yrd Mat Min Mat Sto Combat Hostiles Destroyed 37 | . 12 3 18 4 Melee 2 | . 2 . . . Guns 10 | . 5 1 3 1 AOE 24 | . 4 2 15 3 Classes Destroyed 10 | . 6 1 3 . Builder 5 | . 2 2 1 . Tunneler 1 | . 1 . . . Recycler 2 | . 2 . . . Operator 1 | . . . 1 . Watcher 4 | . 2 . 2 . Swarmer 7 | . 2 . 3 2 Grunt 25 | . 10 1 12 2 Duelist 1 | . . . 1 . Sentry 3 | . . . 3 . Demolisher 2 | . . 2 . . Best Kill Streak 7 | . 6 5 7 4 Combat Bots Only 6 | . 3 3 6 4 Max Kills in Single Turn 2 | . 2 1 2 2 Gunslinging . | . . . . . Exploded 2 | . 1 1 2 2 Melee 1 | . 1 . . . Uniques/NPCs Destroyed . | . . . . . Combat | -11 -10 -10 -9 -9 -------- Run | Yrd Mat Min Mat Sto Hostile Shots Fired 267 | . 66 10 65 126 Missed 92 | . 24 . 22 46 Hits 175 | . 42 10 43 80 Melee 2 | . . . 2 . Projectile 173 | . 42 10 41 80 AOE 10 | . . 10 . . Critical Strikes 1 | . . . 1 . Damage Taken 2693 | . 591 417 867 818 Core 650 | . 90 158 64 338 Absorbed by Shields . | . . . . . Regen/Repaired (Parts) 167 | . . . 167 . Core Remaining (%) 50 | 100 . . . . Volleys Fired 112 | . 40 8 57 7 Largest 2 | . 2 2 2 2 Hottest 53 | . 53 53 53 53 Shots Fired 168 | . 55 16 84 13 Gun 109 | . 40 8 54 7 Cannon . | . . . . . Launcher 59 | . 15 8 30 6 Special . | . . . . . Kinetic 109 | . 40 8 54 7 Thermal . | . . . . . Explosive 59 | . 15 8 30 6 Electromagnetic . | . . . . . Robot Hit Streak 15 | . 7 9 15 5 Robot Miss Streak 5 | . 5 2 5 3 Penetration Max . | . . . . . Secondary Targets . | . . . . . Shots Hit Robots 116 | . 45 9 55 7 Core Hits 95 | . 25 15 48 7 Critical Kills . | . . . . . Critical Parts Destroyed 4 | . 4 . . . Critical Strikes 4 | . 4 . . . Smash 4 | . 4 . . . Melee Attacks 15 | . 15 . . . Impact 15 | . 15 . . . Slashing . | . . . . . Piercing . | . . . . . Sneak Attacks . | . . . . . Combat Hostiles . | . . . . . Follow-up Attacks . | . . . . . Damage Inflicted 3850 | . 1422 302 1782 344 Guns 802 | . 354 76 321 51 Cannons . | . . . . . Explosions 2753 | . 776 226 1461 290 Melee 292 | . 292 . . . Ramming 3 | . . . . 3 Kinetic 802 | . 354 76 321 51 Thermal . | . . . . . Explosive 2753 | . 776 226 1461 290 Electromagnetic . | . . . . . Impact 292 | . 292 . . . Slashing . | . . . . . Piercing . | . . . . . Highest Corruption . | . . . . . Average Corruption . | . . . . . Corruption Purged . | . . . . . Corruption Blocked . | . . . . . Overload Shots . | . . . . . Overflow Damage 150 | . 105 . 25 20 Projectiles . | . . . . . Explosions 55 | . 10 . 25 20 Melee 95 | . 95 . . . Knockbacks 2 | . 2 . . . Impact 2 | . 2 . . . Kinetic . | . . . . . Secondary . | . . . . . Self-Inflicted Damage 375 | . 62 15 249 49 Shots 11 | . 2 1 7 1 Rammed 3 | . . . . 3 Targets Rammed 4 | . . . 1 3 Kicked 1 | . . . 1 . Crushed . | . . . . . Highest Temperature 63 | . 6 . 63 12 Average Temperature 16 | . 3 . 18 7 Received Heat Transfer 705 | . 291 . 270 144 Siege Activations . | . . . . . Martial Activations . | . . . . . Shielding Activations . | . . . . . Robots Disrupted . | . . . . . Combat Hostiles . | . . . . . Robots Corrupted 1 | . 1 . . . Combat Hostiles 1 | . 1 . . . Parts Fried 2 | . 2 . . . Impact Corruptions 4 | . 4 . . . Robots Melted . | . . . . . Combat Hostiles . | . . . . . Parts Melted . | . . . . . Heat Transferred . | . . . . . Parts Sabotaged . | . . . . . Parts Stolen . | . . . . . Parts Stripped . | . . . . . Power Chain Reactions . | . . . . . Alert | -11 -10 -10 -9 -9 ------- Run | Yrd Mat Min Mat Sto Maximum Alert Level 2 | . . . 2 1 Low Security (%) 83 | 100 100 100 46 13 Level 1 14 | . . . 44 86 Level 2 2 | . . . 9 . Level 3 . | . . . . . Level 4 . | . . . . . Level 5 . | . . . . . High Security . | . . . . . Max Security . | . . . . . Peak Influence 455 | . 197 108 455 334 Initial 191 | . . 64 . 191 Average 95 | . 91 19 203 239 Influence Increases 1543 | . 491 134 765 153 Destroy 0b10 Robot/C 760 | . 240 60 380 80 Destroy 0b10 Robot/NC 65 | . 35 10 20 . Destroy Leader 168 | . 54 10 94 10 Allied During Kill 12 | . . . 12 . Successful Hack 23 | . 4 . 19 . Disable Machine 180 | . 45 . 105 30 Destroy Structure 320 | . 98 54 135 33 Lose Combat Pursuer 15 | . 15 . . . Influence Decreases 1359 | . 324 301 310 424 Entered New Map 367 | . . 103 . 264 Time Decay 792 | . 294 178 260 60 Lost Part 200 | . 30 20 50 100 Squads Dispatched 9 | . 2 . 3 4 Investigation 3 | . 1 . 2 . Extermination . | . . . . . Reinforcement 5 | . 1 . 1 3 Assault . | . . . . . Garrison 1 | . . . . 1 Intercept . | . . . . . Searches Triggered . | . . . . . Construction Impeded . | . . . . . Haulers Reinforced . | . . . . . Active Scanning Responses . | . . . . . Cargo Convoy Interrupts . | . . . . . Stealth | -11 -10 -10 -9 -9 --------- Run | Yrd Mat Min Mat Sto Distress Signals 6 | . 2 . . 4 Communications Jammed . | . . . . . Distress Signals . | . . . . . Times Spotted 63 | . 19 2 28 14 Peak Tracking Total 11 | . 4 2 6 11 Tactical Retreats 1 | . 1 . . . Traps | -11 -10 -10 -9 -9 ------- Run | Yrd Mat Min Mat Sto Traps Triggered 5 | . 4 . 1 . Indirectly . | . . . . . Trap Hack Attempts . | . . . . . Triggered . | . . . . . Disarmed . | . . . . . Reprogrammed . | . . . . . Reused . | . . . . . Traps Extracted . | . . . . . Installed . | . . . . . Triggered . | . . . . . Machines | -11 -10 -10 -9 -9 ---------- Run | Yrd Mat Min Mat Sto Machines Disabled 12 | . 3 . 7 2 Max in Single Turn 2 | . 1 . 2 1 Machines Repaired . | . . . . . Machines Dismantled . | . . . . . Machines Sabotaged . | . . . . . Overloaded Fab Kills . | . . . . . Hacking | -11 -10 -10 -9 -9 --------- Run | Yrd Mat Min Mat Sto Machines Accessed 11 | . 6 . 4 1 Terminals 7 | . 4 . 2 1 Fabricators . | . . . . . Repair Stations 1 | . . . 1 . Recycling Units 2 | . 2 . . . Scanalyzers 1 | . . . 1 . Garrison Access . | . . . . . Total Hacks 32 | . 13 . 18 1 Successful 16 | . 6 . 9 1 Failed 16 | . 7 . 9 . Catastrophic 3 | . 2 . 1 . Database Lockouts . | . . . . . Manual . | . . . . . Terminals 17 | . 8 . 8 1 Fabricators . | . . . . . Repair Stations 6 | . . . 6 . Recycling Units 5 | . 5 . . . Scanalyzers 4 | . . . 4 . Garrison Access . | . . . . . Terminal Hacks 7 | . 3 . 3 1 Record 2 | . . . 2 . Open Door 1 | . . . . 1 Branch Access Points 1 | . 1 . . . Alert Level 1 | . 1 . . . Dispatch Records 1 | . 1 . . . Investigation Status 1 | . . . 1 . Fabricator Hacks . | . . . . . Repair Station Hacks 5 | . . . 5 . Scan Component 3 | . . . 3 . Repair 2 | . . . 2 . Recycling Unit Hacks 3 | . 3 . . . Report Inventory 2 | . 2 . . . Retrieve Components 1 | . 1 . . . Scanalyzer 1 | . . . 1 . Retrieve Study 1 | . . . 1 . Garrison Access Hacks . | . . . . . Unauthorized Hacks . | . . . . . Terminals . | . . . . . Fabricators . | . . . . . Repair Stations . | . . . . . Recycling Units . | . . . . . Scanalyzers . | . . . . . Garrison Access . | . . . . . Data Cores Recovered 1 | . . . 1 . Used . | . . . . . Hacking Detections 8 | . 4 . 4 . Full Trace Events 4 | . 1 . 3 . Feedback Events . | . . . . . Feedback Blocked . | . . . . . Robot Schematics Acquired . | . . . . . Robots Built . | . . . . . Authchips . | . . . . . Time . | . . . . . Total Robot Build Rating . | . . . . . Part Schematics Acquired . | . . . . . Parts Built . | . . . . . Authchips . | . . . . . Time . | . . . . . Total Part Build Rating . | . . . . . Part Studies Acquired 1 | . . . 1 . Parts Repaired 2 | . . . 2 . Time 70 | . . . 70 . Parts Recycled . | . . . . . Recycled Matter . | . . . . . Retrieved Matter . | . . . . . Retrieved Components 1 | . 1 . . . Parts Scanalyzed . | . . . . . Part Schematics Acquired . | . . . . . Parts Damaged . | . . . . . Bothacking | -11 -10 -10 -9 -9 ------------ Run | Yrd Mat Min Mat Sto Used RIF Installer . | . . . . . Robots Hacked . | . . . . . Non-combat . | . . . . . Combat . | . . . . . Robot Hacks Applied . | . . . . . Relay Couplers Released . | . . . . . Fabnet Peak Effective % . | . . . . . Robots Rewired . | . . . . . Allies Hacked . | . . . . . Hacks Repelled . | . . . . . Allies | -11 -10 -10 -9 -9 -------- Run | Yrd Mat Min Mat Sto Total Allies 1 | . . 1 . . Largest Group 1 | . . 1 1 . Highest-Rated Group 16 | . . 16 16 . Highest-Rated Ally 16 | . . 16 16 . Total Orders . | . . . . . Ally Attacks 5 | . . . 5 . Total Damage 33 | . . . 33 . Kills 1 | . . . 1 . Allies Corrupted . | . . . . . Allies Melted . | . . . . . Intel | -11 -10 -10 -9 -9 ------- Run | Yrd Mat Min Mat Sto Active Infowar (turns) 2421 | . 828 936 574 83 Sensors 630 | . . 100 530 . Terrain 321 | . 321 . . . Structural 1470 | . 507 836 44 83 Robot Analysis Total . | . . . . . Derelict Logs Recovered 2 | . . 2 . . Drone Launches . | . . . . . Drone Recoveries . | . . . . . Exploration | -11 -10 -10 -9 -9 ------------- Run | Yrd Mat Min Mat Sto Turns Passed 2617 | 74 887 936 597 123 Spaces Moved 1352 | 40 434 492 315 71 Core 28 | 4 3 . . 21 Treads 465 | 36 429 . . . Legs 763 | . . 398 315 50 Wheels 96 | . 2 94 . . Hover . | . . . . . Flight . | . . . . . Fastest Speed 50 | 50 100 90 105 105 Average Speed 150 | 149 160 170 109 136 Slowest Speed 300 | 160 300 190 190 200 Overloaded Moves . | . . . . . Propulsion Burnouts . | . . . . . Robots Hopped . | . . . . . Potential Cave-ins . | . . . . . Cave-ins Triggered . | . . . . . Exploration Rate (%) 45 | 4 68 98 29 30 Regions Visited 4 Branch Regions 2 Pre-discovered Areas 1 | . . 1 . . Known Exits Taken 1 | . 1 . . . Unknown Exits Taken 3 | 1 . 1 1 . Scrap Searched 3 | . . 3 . . Spaces Dug . | . . . . . Terrain Destroyed 393 | . 130 77 150 36 Melee . | . . . . . Projectile . | . . . . . AOE 393 | . 130 77 150 36 Terrain Rammed . | . . . . . Walls Destroyed . | . . . . . Machines Disabled . | . . . . . Actions | -11 -10 -10 -9 -9 --------- Run | Yrd Mat Min Mat Sto Total 1734 | 52 535 570 494 83 Wait 162 | . 14 58 90 . Move 1348 | 39 433 491 314 71 Hop . | . . . . . Pick Up 28 | 7 8 4 9 . Fast Attach 16 | 5 11 . . . Attach 17 | 1 3 3 8 2 Detach . | . . . . . Swap 22 | . 7 5 10 . Drop 10 | . 4 1 5 . Fire 112 | . 40 8 57 7 Melee 15 | . 15 . . . Ram 3 | . . . . 3 Kick 1 | . . . 1 . Crush . | . . . . . Escape Stasis . | . . . . . Rewire . | . . . . . Trap . | . . . . . Miscellaneous . | . . . . . Route ------- -11/Scrapyard -10/Materials (discovered 2 exits: *Mat / *Min) -10/Mines (discovered 2 exits: *Mat x2) -9/Materials (discovered 2 exits: [*Mat] / *Sto) -9/Storage History --------- Turn | Location | Event 13 | -11/Scrapyard | Discovered new exit (range 13) 75 | -11/Scrapyard | Entered Materials 316 | -10/Materials | Build established: Mutant 647 | -10/Materials | Discovered new exit (range 6) 789 | -10/Materials | Discovered new exit (range 9) 796 | -10/Materials | Identified exit to Mines 962 | -10/Materials | Entered Mines 963 | -10/Mines | Assembled infested the area 991 | -10/Mines | Received a Rocket Launcher from a helpful Derelict 1094 | -10/Mines | Core integrity fell below 50% 1102 | -10/Mines | Core integrity fell below 20% 1148 | -10/Mines | Assisted by bots powering up and referring to "LRC-V3" 1400 | -10/Mines | Learned Materials emergency access door positions 1450 | -10/Mines | Found a hidden stash of uninstalled traps 1750 | -10/Mines | Discovered new exit (range 14) 1794 | -10/Mines | Found a damaged Exp. Sensor Array with a note attached 1797 | -10/Mines | Found Prototype Device 1798 | -10/Mines | Identified Exp. Sensor Array 1817 | -10/Mines | Discovered new exit (range 4) 1898 | -10/Mines | Entered Materials 1898 | -9/Materials | Accompanied by 1 ally 1898 | -9/Materials | Evolved 2 slots: Power x1, Propulsion x1 2362 | -9/Materials | Repaired Carbon-fiber Leg+ 2398 | -9/Materials | Repaired Rocket Launcher 2459 | -9/Materials | Lost 3 parts (2p1u) 2463 | -9/Materials | Discovered new exit (range 11) 2478 | -9/Materials | Discovered new exit (range 14) 2495 | -9/Materials | Entered Storage 2521 | -9/Storage | Garrison activated, responded to threat 2575 | -9/Storage | Core integrity fell below 50% 2602 | -9/Storage | Lost 9 parts (2p3n4w) 2606 | -9/Storage | Core integrity fell below 20% 2618 | -9/Storage | Destroyed by S-10 Pest with Light Assault Rifle Last Messages --------------- Carbon-fiber Leg+ destroyed. Slammed into R-06 Scavenger. K-01 Serf collects debris. W-16 Scout sends out distress signal. K-01 Serf collects debris. Slammed into R-06 Scavenger. Structural Scanner broken. Destabilizing: Short circuit. K-01 Serf collects debris. W-16 Scout sends out distress signal. K-01 Serf collects debris. ALERT: Hostiles spotted, dispatching reinforcements to Terminal S003. K-01 Serf collects debris. S-10 Pest destroyed. K-01 Serf collects debris. R-06 Scavenger collects Lgt. Assault Rifle. Broken Structural Scanner destroyed. K-01 Serf collects debris. Slammed into A-02 Transporter. Map ----- +----------------------------------------------------+ | ?????????????????????????????????????????#### | | ?????????????????????????????????????????### | | ????????????????????????????????????????### # | | ????????????????????????????????????????### # | | ????????????????????????????????????????##T + | | ????????????????????????????????????????### # | | ????????????????????????????????????????###!!# | | ?????????????????????????????????????????##!!## | | ?????????????????????????????????????????##!!## | | ????????????????????????????????????########### | | ????????????????????????????????????########### | | ????????????????????????????????????## # | | ????????????????????????????????????## " | | ????????????????????????????????????## # | | ????????????????????????????????????## # | | ????????????????????????????????????## # | | ????????????????????????????????????## # | | ????????????????????????????????????## # | | ????????????????????????????????????## # | | ????????????????????????????????????## # | | ????????????????????????????????????#####/##### | | ??????????????????????????############### ##### | | ??????????????????????????# ### ##?## | | ??????????????????????????# ### ##??? | | ??????????????????????# ### ### ##??? | | ??????????????????????# a@/ g r# #### | | ??????????????????????# ### k sk %Y | | ??????????????????????????# a =# #####+# | | ??????????????????????????# # # ? | | ??????????????????????????############## ## ????? | | ?????????????????????????????????????? # ## ????? | | ?????????????????????????????????????? + ##?????? | | ?????????????????????????????????????? # #??????? | | ?????????????????????????????????????? # #??????? | | ?????????????????????????????????????? # #??????? | | ?????????????????????????????????????? # #??????? | | ???????????????????????????????????????# #??????? | | ???????????????????????????????????????# #??????? | | ???????????????????????????????????????# #??????? | | ???????????????????????????????????????? ??????? | | ???????????????????????????????????????? ??????? | | ???????????????????????????????????????? T???????? | | ?????????????????????????????????????????????????? | | ?????????????????????????????????????????????????? | | ?????????????????????????????????????????????????? | | ?????????????????????????????????????????????????? | | ?????????????????????????????????????????????????? | | ?????????????????????????????????????????????????? | | ?????????????????????????????????????????????????? | | ?????????????????????????????????????????????????? | +----------------------------------------------------+ Best States ------------- Heat Dissipation 28 Energy Generation 17 Energy Capacity 290 Matter Stores 300 Matter Capacity 300 Sight Range 16 Robot Scan Range 20 Terrain Scan Range 14 Terrain Scan Density 10 Evasion (%) 55 Recoil Reduction 2 Item Schematics ----------------- None Robot Schematics ------------------ None Fabricated ------------ Nothing Repaired ---------- Carbon-fiber Leg | 8% | -9/Materials Rocket Launcher | 5% | -9/Materials Studied --------- Carbon-fiber Leg | -9/Materials | Hacked Alien Tech Used ----------------- None Achievements -------------- Close Call Let's See Who's Tougher Power Corrupts Remodeling Resistances Are Futile Troublemaker Challenges ------------ None Game ------ Seed SupersonicNetworkedRocket Manual? 0 Play Time 00:26:58 Cumulative 4.6 hours Start 2026.08.30 @ 13:51:22 End 2026.08.30 @ 14:19:07 Sessions 1 Manual Loads 0 Difficulty Rogue Special Mode None Game No. 9 Rogue 9 Adventurer 0 Explorer 0 Win Type - Total 0 Types 0/0/0/0/0/0/0/0/0/0 Lore% 12 Gallery% 8 Achievement% 10 Wizard Run 0 Options --------- Layout 1 ASCII 0 Keyboard 0 Movement Numpad Keybinds 0 Fullscreen 2 Font 24/X11 Map View 50x35 Zoom Use 0% Tactical HUD 0 Map Filters NONE Filters NONE Steam 1 RUN: f1ce9df2-3734-47df-8d96-e2ba7e9690ad